fUST/lending_fUST_20251122
["ID","MTS","AMOUNT","RATE_DAILY","PERIOD"]
[394638103,1763803831826,-500.0,9.632e-05,2]
[394638105,1763803831835,-183.72,9.632e-05,2]
[394638107,1763803831844,-500.0,9.632e-05,2]
[394638109,1763803831853,-500.0,9.632e-05,2]
[394638111,1763803831861,-500.0,9.632e-05,2]
[394638113,1763803831870,-500.0,9.632e-05,2]
[394638116,1763803831879,-500.0,9.632e-05,2]
[394638118,1763803831888,-500.0,9.632e-05,2]
[394638121,1763803831897,-500.0,9.632e-05,2]
[394638123,1763803831906,-500.0,9.632e-05,2]
[394638125,1763803831915,-599.0676705,9.632e-05,2]
[394638127,1763803831923,-500.0,9.632e-05,2]
[394638129,1763803831932,-500.0,9.632e-05,2]
[394638131,1763803831945,-500.0,9.632e-05,2]
[394638133,1763803831954,-500.0,9.632e-05,2]
[394638135,1763803831963,-500.0,9.632e-05,2]
[394638137,1763803831972,-500.0,9.632e-05,2]
[394638139,1763803831982,-500.0,9.632e-05,2]
[394638141,1763803831991,-316.68012596,9.632e-05,2]
[394638143,1763803832003,-183.31987404,9.632e-05,2]
[394638145,1763803832012,-500.0,9.632e-05,2]
[394638147,1763803832022,-500.0,9.632e-05,2]
[394638149,1763803832031,-572.483953,9.632e-05,2]
[394638150,1763803832040,-500.0,9.632e-05,2]
[394638151,1763803832048,-500.0,9.632e-05,2]
[394638152,1763803832057,-500.0,9.632e-05,2]
[394638153,1763803832066,-500.0,9.632e-05,2]
[394638154,1763803832074,-500.0,9.632e-05,2]
[394638155,1763803832084,-500.0,9.632e-05,2]
[394638156,1763803832093,-3714.12221719,9.633e-05,2]
[394638159,1763803837820,-3138.04255411,9.633e-05,2]
[394638160,1763803837882,-1975.97652487,9.633e-05,2]
[394638162,1763803841884,-892.80800524,9.633e-05,2]
[394638163,1763803841897,-2592.77133059,9.633e-05,2]
[394638164,1763803841908,-433.33155169,9.633e-05,2]
[394638165,1763803841919,-452.649032,9.633e-05,2]
[394638187,1763803844369,-3562.82313867,9.633e-05,2]
[394638188,1763803844380,-289.54641168,9.633e-05,2]
[394638189,1763803844391,-24984.25645368,9.633e-05,2]
[394638190,1763803844401,-1135.04524533,9.633e-05,2]
[394638194,1763803846014,-6828.62753495,9.633e-05,2]
[394638195,1763803846025,-500.52118262,9.633e-05,2]
[394638196,1763803846034,-500.0,9.633e-05,2]
[394638197,1763803846043,-184.0,9.633e-05,2]
[394638198,1763803846051,-160.0,9.633e-05,2]
[394638199,1763803846061,-500.0,9.633e-05,2]
[394638200,1763803846070,-187.26026655,9.651e-05,2]
[394638201,1763803846079,-50489.33634568,9.652e-05,2]
[394638203,1763803846091,-253.7425319,9.652e-05,2]
[394638206,1763803902977,268.609,9.458e-05,2]
[394638212,1763804280264,1500.0,0.00025279,120]
[394638213,1763804307810,505.0,0.0002,30]
[394638214,1763804332290,709.0,0.0002,30]
[394638216,1763804503011,214.888,9.458e-05,2]
[394638219,1763804530523,164.154972,0.0002,30]
[394638220,1763804532844,164.154972,0.0002,30]
[394638223,1763804605606,173.11896743,0.0002,30]
[394638235,1763804833506,16505.3539323,8.621e-05,2]
[394638253,1763805032094,-270.0,9.548e-05,2]
[394638254,1763805032103,-199.45348668,9.548e-05,2]
[394638271,1763805037958,-100.54651332,9.548e-05,2]
[394638272,1763805037969,-300.0,9.548e-05,2]
[394638273,1763805037979,-166.66,9.549e-05,2]
[394638274,1763805037988,-500.0,9.549e-05,2]
[394638275,1763805037999,-500.0,9.549e-05,2]
[394638276,1763805038008,-500.0,9.549e-05,2]
[394638277,1763805038018,-500.0,9.549e-05,2]
[394638278,1763805038027,-500.0,9.549e-05,2]
[394638279,1763805038037,-500.0,9.549e-05,2]
[394638280,1763805038046,-500.0,9.549e-05,2]
[394638281,1763805038055,-500.0,9.549e-05,2]
[394638282,1763805038065,-500.0,9.549e-05,2]
[394638283,1763805038074,-500.0,9.549e-05,2]
[394638284,1763805038083,-507.2483953,9.549e-05,2]
[394638285,1763805038093,-500.0,9.549e-05,2]
[394638286,1763805038102,-500.0,9.549e-05,2]
[394638287,1763805038112,-500.0,9.549e-05,2]
[394638288,1763805038123,-500.0,9.549e-05,2]
[394638289,1763805038133,-385.74923352,9.549e-05,2]
[394638290,1763805038143,-500.0,9.549e-05,2]
[394638291,1763805038152,-500.0,9.549e-05,2]
[394638292,1763805038161,-150.0,9.55e-05,2]
[394638293,1763805038171,-205.33949354,9.551e-05,2]
[394638294,1763805038180,-49128.37423815,9.552e-05,2]
[394638295,1763805038199,-3024.78344181,9.552e-05,2]
[394638296,1763805038210,-4359.00647253,9.552e-05,2]
[394638329,1763805040208,-7634.46858625,9.549e-05,2]
[394638365,1763805046166,-9000.0,9.549e-05,2]
[394638369,1763805046938,-11735.6585147,9.549e-05,2]
[394638370,1763805046949,-1155.4,9.549e-05,2]
[394638373,1763805068968,300.0,9.453e-05,2]
[394638374,1763805091243,300.0,9.453e-05,2]
[394638375,1763805100829,23884.0,0.00025278,120]
[394638376,1763805113473,300.0,9.453e-05,2]
[394638377,1763805136050,300.0,9.453e-05,2]
[394638378,1763805151876,152.536367,0.000196,30]
[394638379,1763805152186,152.536367,0.00019297,30]
[394638380,1763805152492,152.536367,0.00018994,30]
[394638381,1763805158004,259.5512716,9.453e-05,2]
[394638382,1763805309859,10000.0,0.00014,10]
[394638383,1763805323888,3150.36,0.00014,10]
[394638384,1763805512028,8138.29370696,9.449e-05,2]
[394638385,1763805726151,164.154972,0.000196,30]
[394638386,1763805753281,152.536367,0.000196,30]
[394638387,1763805753701,152.536367,0.00019506,30]
[394638388,1763805753983,152.536367,0.00019412,30]
[394638394,1763805811589,152.536367,0.000192,30]
[394638395,1763805811896,152.536367,0.00018672,30]
[394638435,1763806238237,-300.0,9.447e-05,2]
[394638436,1763806238246,-300.0,9.447e-05,2]
[394638437,1763806238256,-150.0,9.447e-05,2]
[394638438,1763806238265,-18716.8034624,9.448e-05,2]
[394638439,1763806238274,-193.34864098,9.448e-05,2]
[394638440,1763806238284,-607.73514766,9.448e-05,2]
[394638441,1763806238294,-50000.0,9.448e-05,2]
[394638442,1763806238303,-500.0,9.448e-05,2]
[394638443,1763806238312,-598.4165815,9.448e-05,2]
[394638444,1763806238322,-500.0,9.448e-05,2]
[394638445,1763806238331,-500.0,9.448e-05,2]
[394638446,1763806238341,-500.0,9.448e-05,2]
[394638447,1763806238350,-500.0,9.448e-05,2]
[394638448,1763806238360,-500.0,9.448e-05,2]
[394638449,1763806238370,-500.0,9.448e-05,2]
[394638450,1763806238379,-500.0,9.448e-05,2]
[394638451,1763806238389,-500.0,9.448e-05,2]
[394638452,1763806238399,-500.0,9.448e-05,2]
[394638453,1763806238408,-500.0,9.448e-05,2]
[394638454,1763806238418,-191.78362964,9.448e-05,2]
[394638455,1763806238427,-500.0,9.448e-05,2]
[394638456,1763806238436,-500.0,9.448e-05,2]
[394638457,1763806238446,-500.0,9.448e-05,2]
[394638458,1763806238455,-500.0,9.448e-05,2]
[394638459,1763806238464,-500.0,9.448e-05,2]
[394638460,1763806238474,-500.0,9.448e-05,2]
[394638461,1763806238483,-500.0,9.448e-05,2]
[394638462,1763806238494,-500.0,9.448e-05,2]
[394638463,1763806238503,-500.0,9.448e-05,2]
[394638464,1763806238513,-500.0,9.448e-05,2]
[394638465,1763806238522,-500.0,9.448e-05,2]
[394638466,1763806238531,-500.0,9.448e-05,2]
[394638467,1763806238540,-500.0,9.448e-05,2]
[394638468,1763806238549,-500.0,9.448e-05,2]
[394638469,1763806238559,-500.0,9.448e-05,2]
[394638470,1763806238568,-500.0,9.448e-05,2]
[394638471,1763806238579,-500.0,9.448e-05,2]
[394638472,1763806238588,-500.0,9.448e-05,2]
[394638473,1763806238598,-500.0,9.448e-05,2]
[394638474,1763806238607,-500.0,9.448e-05,2]
[394638475,1763806238617,-500.0,9.448e-05,2]
[394638476,1763806238626,-500.0,9.448e-05,2]
[394638477,1763806238635,-500.0,9.448e-05,2]
[394638478,1763806238644,-500.0,9.448e-05,2]
[394638479,1763806238654,-500.0,9.448e-05,2]
[394638480,1763806238664,-500.0,9.448e-05,2]
[394638481,1763806238673,-500.0,9.448e-05,2]
[394638482,1763806238683,-500.0,9.448e-05,2]
[394638483,1763806238692,-500.0,9.448e-05,2]
[394638484,1763806238701,-500.0,9.448e-05,2]
[394638485,1763806238716,-391.43572305,9.448e-05,2]
[394638486,1763806238725,-500.0,9.448e-05,2]
[394638487,1763806238735,-500.0,9.448e-05,2]
[394638488,1763806238744,-500.0,9.448e-05,2]
[394638489,1763806238755,-500.0,9.448e-05,2]
[394638490,1763806238768,-500.0,9.448e-05,2]
[394638491,1763806238778,-500.0,9.448e-05,2]
[394638492,1763806238788,-500.0,9.448e-05,2]
[394638493,1763806238799,-500.0,9.448e-05,2]
[394638494,1763806238809,-500.0,9.448e-05,2]
[394638495,1763806238818,-500.0,9.448e-05,2]
[394638496,1763806238828,-500.0,9.448e-05,2]
[394638497,1763806238838,-500.0,9.448e-05,2]
[394638498,1763806238848,-500.0,9.448e-05,2]
[394638499,1763806238858,-216.39795158,9.448e-05,2]
[394638500,1763806238867,-18182.84858428,9.449e-05,2]
[394638507,1763806240389,-40890.52183965,9.449e-05,2]
[394638518,1763806245156,-4457.42683899,9.449e-05,2]
[394648416,1763806351922,152.536367,0.000192,30]
[394648430,1763806352234,152.536367,0.00018672,30]
[394648787,1763806627406,164.154972,0.000196,30]
[394648788,1763806987511,164.154972,0.00019998,30]
[394648796,1763807388201,171.91,8.978e-05,2]
[394648800,1763807411216,171.91,8.978e-05,2]
[394648801,1763807419263,171.91,8.978e-05,2]
[394648821,1763807432545,-150.0,9.115e-05,2]
[394648822,1763807432555,-171.91,9.161e-05,2]
[394648823,1763807432564,-358.0,9.32e-05,2]
[394648824,1763807432574,-300.0,9.32e-05,2]
[394648825,1763807432583,-300.0,9.32e-05,2]
[394648826,1763807432592,-140.29,9.32e-05,2]
[394648829,1763807438414,-150.0,9.024e-05,2]
[394648831,1763807438425,-159.71,9.32e-05,2]
[394648833,1763807438434,-1200.0,9.32e-05,2]
[394648834,1763807438443,-500.0,9.32e-05,2]
[394648835,1763807438453,-500.0,9.32e-05,2]
[394648836,1763807438462,-23068.92578474,9.321e-05,2]
[394648847,1763807445643,-300.0,9.228e-05,2]
[394648848,1763807445725,-638.41,9.228e-05,2]
[394648849,1763807445736,-1030.40296552,9.228e-05,2]
[394648855,1763807446860,-497.26883134,9.228e-05,2]
[394648856,1763807446869,-500.0,9.32e-05,2]
[394648857,1763807446878,-245.6835911,9.32e-05,2]
[394648858,1763807610009,175.479934,0.000192,30]
[394648859,1763807649960,526.74870202,8.954e-05,2]
[394648860,1763807658043,526.74870202,8.954e-05,2]
[394648861,1763807673505,526.74870202,8.954e-05,2]
[394648862,1763807681340,526.74870202,8.954e-05,2]
[394648863,1763807692652,199.89170373,8.691e-05,2]
[394648864,1763807696359,526.74870202,8.954e-05,2]
[394648865,1763807704508,526.74870202,8.954e-05,2]
[394648866,1763807719413,328.3516908,8.954e-05,2]
[394648867,1763807727261,526.74870202,8.954e-05,2]
[394648868,1763807749616,526.74870202,8.954e-05,2]
[394648869,1763807766592,164.154973,0.00019998,30]
[394648870,1763807771633,526.74870202,8.954e-05,2]
[394648871,1763807794314,526.74870202,8.954e-05,2]
[394648872,1763807802402,526.74870202,8.954e-05,2]
[394648873,1763807817787,150.0,8.999e-05,2]
[394648874,1763807825610,150.0,8.999e-05,2]
[394648875,1763807841407,150.0,8.999e-05,2]
[394648876,1763807849676,150.0,8.999e-05,2]
[394648877,1763807865001,150.0,8.999e-05,2]
[394648878,1763807873361,150.0,8.999e-05,2]
[394648879,1763807889209,150.0,8.999e-05,2]
[394648880,1763807897042,150.0,8.999e-05,2]
[394648881,1763807912402,150.0,8.999e-05,2]
[394648882,1763807920840,150.0,8.999e-05,2]
[394648883,1763807936112,150.0,8.999e-05,2]
[394648884,1763807943989,150.0,8.999e-05,2]
[394648885,1763807967534,150.0,8.944e-05,2]
[394648886,1763807989291,150.0,8.944e-05,2]
[394648887,1763808011310,150.0,8.944e-05,2]
[394648888,1763808033646,150.0,8.944e-05,2]
[394648889,1763808055761,150.0,8.944e-05,2]
[394648890,1763808077784,150.0,8.944e-05,2]
[394648891,1763808099740,150.0,8.944e-05,2]
[394648892,1763808122846,150.0,8.944e-05,2]
[394648893,1763808144825,150.0,8.944e-05,2]
[394648894,1763808160613,11.79088325,8.944e-05,2]
[394648895,1763808160633,138.20911675,8.944e-05,2]
[394648896,1763808183849,150.0,8.944e-05,2]
[394648897,1763808206392,150.0,8.944e-05,2]
[394648899,1763808229330,150.0,8.944e-05,2]
[394648900,1763808251518,150.0,8.944e-05,2]
[394648901,1763808273533,150.0,8.944e-05,2]
[394648902,1763808295335,226.99670674,8.691e-05,2]
[394648903,1763808295713,150.0,8.944e-05,2]
[394648904,1763808318196,150.0,8.944e-05,2]
[394648905,1763808341056,150.0,8.944e-05,2]
[394648906,1763808364068,150.0,8.944e-05,2]
[394648907,1763808372130,150.0,8.944e-05,2]
[394648908,1763808387339,150.0,8.989e-05,2]
[394648909,1763808395775,150.0,8.989e-05,2]
[394648910,1763808411923,150.0,8.989e-05,2]
[394648911,1763808419738,150.0,8.989e-05,2]
[394648912,1763808434929,150.0,8.989e-05,2]
[394648913,1763808442844,150.0,8.989e-05,2]
[394648914,1763808457987,150.0,8.989e-05,2]
[394648915,1763808465735,150.0,8.989e-05,2]
[394648916,1763808481463,150.0,8.989e-05,2]
[394648917,1763808489771,150.0,8.989e-05,2]
[394648918,1763808504993,150.0,8.989e-05,2]
[394648919,1763808513424,150.0,8.989e-05,2]
[394648920,1763808528645,150.0,8.989e-05,2]
[394648921,1763808536860,150.0,8.989e-05,2]
[394648922,1763808552699,150.0,8.989e-05,2]
[394648923,1763808560621,150.0,8.989e-05,2]
[394648924,1763808575954,150.0,8.989e-05,2]
[394648925,1763808583851,150.0,8.998e-05,2]
[394648926,1763808599053,150.0,8.998e-05,2]
[394648927,1763808607108,150.0,8.998e-05,2]
[394648928,1763808622873,150.0,8.998e-05,2]
[394648929,1763808631028,150.0,8.998e-05,2]
[394648950,1763808631607,-150.0,9.089e-05,2]
[394648952,1763808631617,-300.0,9.099e-05,2]
[394648954,1763808631626,-300.0,9.099e-05,2]
[394648955,1763808631636,-300.0,9.099e-05,2]
[394648958,1763808631646,-531.24310345,9.099e-05,2]
[394648960,1763808631662,-310.75689655,9.099e-05,2]
[394648962,1763808631671,-69.8191052,9.099e-05,2]
[394648964,1763808631713,-230.1808948,9.099e-05,2]
[394648965,1763808631722,-46095.80979545,9.1e-05,2]
[394648966,1763808631735,-2730.9520842,9.1e-05,2]
[394648976,1763808637629,-5000.0,9.1e-05,2]
[394648979,1763808637792,-2521.307953,9.1e-05,2]
[394649005,1763808639898,-69106.85418695,9.1e-05,2]
[394649007,1763808639911,-440.45,9.1e-05,2]
[394649133,1763808645816,-895.10725028,9.1e-05,2]
[394649168,1763808646314,-808.04173571,9.1e-05,2]
[394649477,1763808654638,4834.79417651,8.919e-05,2]
[394649478,1763808654660,1370.39780442,8.919e-05,2]
[394649479,1763808703099,171.91,8.918e-05,2]
[394649480,1763808752698,162.369324,0.000192,30]
[394649481,1763808752937,162.369324,0.00018918,30]
[394649482,1763808841284,7789.50778788,8.919e-05,2]
[394649484,1763809327949,3276.0,0.00025279,120]
[394649485,1763809494697,227.11014837,8.691e-05,2]
[394649486,1763809528965,441.07425933,8.967e-05,2]
[394649487,1763809528988,10000.0,8.967e-05,2]
[394649546,1763809832045,-300.0,8.963e-05,2]
[394649548,1763809832055,-300.0,8.963e-05,2]
[394649550,1763809832064,-400.0,8.964e-05,2]
[394649552,1763809832075,-100.0,8.964e-05,2]
[394649555,1763809832084,-307.03070456,8.964e-05,2]
[394649653,1763809837768,-374.98291664,8.963e-05,2]
[394649660,1763809837825,-125.01708336,8.963e-05,2]
[394649662,1763809837835,-160.98291664,8.963e-05,2]
[394649664,1763809837845,-293.19396733,8.963e-05,2]
[394649666,1763809837855,-231.6807247,8.963e-05,2]
[394649747,1763809839990,-268.3192753,8.963e-05,2]
[394649749,1763809839999,-366.6807247,8.963e-05,2]
[394649751,1763809840010,-133.3192753,8.963e-05,2]
[394649753,1763809840021,-500.0,8.963e-05,2]
[394649755,1763809840030,-500.0,8.963e-05,2]
[394649756,1763809840039,-500.0,8.963e-05,2]
[394649759,1763809840048,-500.0,8.963e-05,2]
[394649761,1763809840057,-500.0,8.963e-05,2]
[394649763,1763809840066,-500.0,8.963e-05,2]
[394649765,1763809840075,-500.0,8.963e-05,2]
[394649767,1763809840084,-500.0,8.963e-05,2]
[394649768,1763809840094,-550.0,8.963e-05,2]
[394649771,1763809840103,-500.0,8.963e-05,2]
[394649773,1763809840114,-500.0,8.963e-05,2]
[394649774,1763809840123,-500.0,8.963e-05,2]
[394649776,1763809840133,-435.73444849,8.963e-05,2]
[394649779,1763809840144,-64.26555151,8.963e-05,2]
[394649781,1763809840154,-387.33066443,8.963e-05,2]
[394649783,1763809840173,-112.66933557,8.963e-05,2]
[394649785,1763809840182,-500.0,8.963e-05,2]
[394649787,1763809840192,-500.0,8.963e-05,2]
[394649789,1763809840201,-500.0,8.963e-05,2]
[394649791,1763809840210,-500.0,8.963e-05,2]
[394649793,1763809840219,-500.0,8.963e-05,2]
[394649795,1763809840228,-500.0,8.963e-05,2]
[394649797,1763809840237,-500.0,8.963e-05,2]
[394649799,1763809840246,-500.0,8.963e-05,2]
[394649801,1763809840255,-350.0,8.963e-05,2]
[394649803,1763809840264,-500.0,8.963e-05,2]
[394649805,1763809840273,-500.0,8.963e-05,2]
[394649807,1763809840282,-500.0,8.963e-05,2]
[394649809,1763809840291,-150.0,8.964e-05,2]
[394649811,1763809840300,-500.0,8.964e-05,2]
[394649813,1763809840309,-163.6483598,8.964e-05,2]
[394649816,1763809840319,-500.0,8.964e-05,2]
[394649818,1763809840328,-500.0,8.964e-05,2]
[394649820,1763809840337,-242.78011031,8.964e-05,2]
[394649822,1763809840346,-500.0,8.964e-05,2]
[394649824,1763809840355,-500.0,8.964e-05,2]
[394649826,1763809840370,-500.0,8.964e-05,2]
[394649828,1763809840379,-500.0,8.964e-05,2]
[394649830,1763809840389,-500.0,8.964e-05,2]
[394649832,1763809840399,-500.0,8.964e-05,2]
[394649834,1763809840408,-500.0,8.964e-05,2]
[394649836,1763809840418,-500.0,8.964e-05,2]
[394649838,1763809840429,-500.0,8.964e-05,2]
[394649840,1763809840438,-593.69724539,8.964e-05,2]
[394649841,1763809840447,-500.0,8.964e-05,2]
[394649844,1763809840456,-500.0,8.964e-05,2]
[394649846,1763809840466,-14973.44276992,8.965e-05,2]
[394649847,1763809840475,-500.0,8.965e-05,2]
[394649849,1763809840484,-50000.0,8.965e-05,2]
[394649851,1763809840493,-17781.07341006,8.967e-05,2]
[394649952,1763809844197,-464.996769,8.967e-05,2]
[394649953,1763809844207,-302.0,8.967e-05,2]
[394649954,1763809844218,-3035.63556038,8.967e-05,2]
[394649955,1763809844229,-257.58299268,8.967e-05,2]
[394649956,1763809844419,-3180.76767732,8.967e-05,2]
[394649968,1763809953170,162.369324,0.000192,30]
[394649969,1763810223194,3157.0,8.5e-05,2]
[394649970,1763810312369,162.369324,0.00019998,30]
[394649971,1763810416648,704.66014796,0.0001956,30]
[394650001,1763811032087,-150.0,8.833e-05,2]
[394650003,1763811032097,-300.0,8.837e-05,2]
[394650005,1763811032106,-27.79490419,8.837e-05,2]
[394650037,1763811038122,-272.20509581,8.837e-05,2]
[394650038,1763811038131,-1070.0,8.837e-05,2]
[394650039,1763811038141,-500.0,8.837e-05,2]
[394650040,1763811038150,-500.0,8.837e-05,2]
[394650041,1763811038159,-370.04494443,8.837e-05,2]
[394650042,1763811038169,-668.16675766,8.837e-05,2]
[394650043,1763811038178,-500.0,8.837e-05,2]
[394650044,1763811038188,-500.0,8.837e-05,2]
[394650045,1763811038202,-668.16675766,8.837e-05,2]
[394650046,1763811038211,-440.61391201,8.837e-05,2]
[394650047,1763811038220,-500.0,8.837e-05,2]
[394650048,1763811038230,-668.16675766,8.837e-05,2]
[394650049,1763811038239,-500.0,8.837e-05,2]
[394650050,1763811038249,-500.0,8.837e-05,2]
[394650051,1763811038262,-668.16675766,8.837e-05,2]
[394650052,1763811038271,-500.0,8.837e-05,2]
[394650053,1763811038280,-500.0,8.837e-05,2]
[394650054,1763811038290,-668.16675766,8.837e-05,2]
[394650055,1763811038299,-500.0,8.837e-05,2]
[394650056,1763811038308,-500.0,8.837e-05,2]
[394650057,1763811038317,-668.16675766,8.837e-05,2]
[394650058,1763811038327,-500.0,8.837e-05,2]
[394650059,1763811038336,-500.0,8.837e-05,2]
[394650060,1763811038346,-668.16675766,8.837e-05,2]
[394650061,1763811038355,-500.0,8.837e-05,2]
[394650062,1763811038364,-500.0,8.837e-05,2]
[394650063,1763811038373,-668.16675766,8.837e-05,2]
[394650064,1763811038384,-500.0,8.837e-05,2]
[394650065,1763811038395,-668.16675766,8.837e-05,2]
[394650066,1763811038404,-500.0,8.837e-05,2]
[394650067,1763811038414,-500.0,8.837e-05,2]
[394650068,1763811038423,-668.16675766,8.837e-05,2]
[394650069,1763811038433,-500.0,8.837e-05,2]
[394650070,1763811038442,-668.16675766,8.837e-05,2]
[394650071,1763811038451,-553.90442036,8.837e-05,2]
[394650072,1763811038462,-9.18836429,8.837e-05,2]
[394650091,1763811044164,-658.97839337,8.837e-05,2]
[394650092,1763811044174,-668.16675766,8.837e-05,2]
[394650093,1763811044184,-668.16675766,8.837e-05,2]
[394650094,1763811044194,-475.55302252,8.837e-05,2]
[394650095,1763811044206,-192.61373514,8.837e-05,2]
[394650096,1763811044215,-221.83658464,8.837e-05,2]
[394650097,1763811044226,-278.16341536,8.837e-05,2]
[394650098,1763811044235,-668.16675766,8.837e-05,2]
[394650099,1763811044245,-668.16675766,8.837e-05,2]
[394650100,1763811044254,-668.16675766,8.837e-05,2]
[394650101,1763811044263,-630.81362232,8.837e-05,2]
[394650102,1763811044800,-37.35313534,8.837e-05,2]
[394650103,1763811044810,-668.16675766,8.837e-05,2]
[394650104,1763811044819,-668.16675766,8.837e-05,2]
[394650105,1763811044828,-668.16675766,8.837e-05,2]
[394650106,1763811044838,-668.16675766,8.837e-05,2]
[394650107,1763811044847,-668.16675766,8.837e-05,2]
[394650108,1763811044866,-668.16675766,8.837e-05,2]
[394650109,1763811044875,-668.16675766,8.837e-05,2]
[394650110,1763811044884,-668.16675766,8.837e-05,2]
[394650111,1763811044894,-668.16675766,8.837e-05,2]
[394650112,1763811044903,-668.16675766,8.837e-05,2]
[394650113,1763811044912,-668.16675766,8.837e-05,2]
[394650114,1763811044921,-668.16675766,8.837e-05,2]
[394650115,1763811044930,-71.0631669,8.837e-05,2]
[394650122,1763811046423,-597.10359076,8.837e-05,2]
[394650123,1763811046433,-668.16675766,8.837e-05,2]
[394650124,1763811046444,-668.16675766,8.837e-05,2]
[394650125,1763811046454,-668.16675766,8.837e-05,2]
[394650126,1763811046465,-668.16675766,8.837e-05,2]
[394650127,1763811046474,-206.6973786,8.837e-05,2]
[394650128,1763811091695,162.369325,0.000192,30]
[394650132,1763811469768,10000.0,8.5e-05,2]
[394650133,1763811479348,10000.0,8.5e-05,2]
[394650134,1763811500455,167.337528,7.898e-05,2]
[394650135,1763811574695,10000.0,8.5e-05,2]
[394650136,1763811585238,10000.0,8.5e-05,2]
[394650137,1763811592581,10000.0,8.5e-05,2]
[394650138,1763811600052,10000.0,8.5e-05,2]
[394650139,1763811607725,10000.0,8.5e-05,2]
[394650140,1763811614154,10000.0,8.5e-05,2]
[394650141,1763811620772,7223.91,8.5e-05,2]
[394650156,1763811693283,2475.66713886,0.00025279,120]
[394650207,1763812232284,-300.0,8.73e-05,2]
[394650208,1763812232295,-207.2010556,8.73e-05,2]
[394650209,1763812232308,-292.7989444,8.73e-05,2]
[394650210,1763812232317,-183.7210556,8.73e-05,2]
[394650211,1763812232541,-316.2789444,8.73e-05,2]
[394650212,1763812232551,-500.0,8.73e-05,2]
[394650213,1763812232560,-235.1166309,8.73e-05,2]
[394650214,1763812232571,-264.8833691,8.73e-05,2]
[394650215,1763812232580,-169.94607721,8.73e-05,2]
[394650216,1763812232596,-500.0,8.73e-05,2]
[394650217,1763812232605,-1200.0,8.731e-05,2]
[394650218,1763812232614,-166.79,8.731e-05,2]
[394650219,1763812232623,-151.0,8.731e-05,2]
[394650220,1763812232631,-7165.29567016,8.731e-05,2]
[394650221,1763812232778,-500.0,8.73e-05,2]
[394650222,1763812232788,-170.62852578,8.73e-05,2]
[394650223,1763812232800,-500.0,8.73e-05,2]
[394650224,1763812232809,-8247.38750958,8.731e-05,2]
[394650225,1763812232820,-34587.31682026,8.731e-05,2]
[394650226,1763812232829,-611.42216868,8.731e-05,2]
[394650227,1763812232839,-611.42216868,8.731e-05,2]
[394650228,1763812232848,-611.42216868,8.731e-05,2]
[394650229,1763812232857,-611.42216868,8.731e-05,2]
[394650230,1763812232867,-611.42216868,8.731e-05,2]
[394650231,1763812232876,-611.42216868,8.731e-05,2]
[394650232,1763812232885,-611.42216868,8.731e-05,2]
[394650233,1763812232894,-611.42216868,8.731e-05,2]
[394650234,1763812232903,-611.42216868,8.731e-05,2]
[394650235,1763812232912,-611.42216868,8.731e-05,2]
[394650236,1763812232921,-611.42216868,8.731e-05,2]
[394650237,1763812232930,-611.42216868,8.731e-05,2]
[394650238,1763812232939,-611.42216868,8.731e-05,2]
[394650239,1763812232947,-611.42216868,8.731e-05,2]
[394650240,1763812232956,-611.42216868,8.731e-05,2]
[394650241,1763812232964,-611.42216868,8.731e-05,2]
[394650242,1763812232973,-611.42216868,8.731e-05,2]
[394650243,1763812232982,-611.42216868,8.731e-05,2]
[394650244,1763812232991,-611.42216868,8.731e-05,2]
[394650245,1763812233000,-611.42216868,8.731e-05,2]
[394650246,1763812233009,-611.42216868,8.731e-05,2]
[394650247,1763812233019,-92.90233577,8.731e-05,2]
[394650251,1763812238260,-315.58807177,8.73e-05,2]
[394650252,1763812238271,-500.0,8.73e-05,2]
[394650253,1763812238280,-500.0,8.73e-05,2]
[394650254,1763812238289,-137.41192823,8.73e-05,2]
[394650255,1763812238577,-362.58807177,8.73e-05,2]
[394650256,1763812238586,-500.0,8.73e-05,2]
[394650257,1763812238595,-500.0,8.73e-05,2]